bitfinex/quotes_BTCUSD_20240828
["timestamp","ask_amount","ask_price","bid_price","bid_amount"]
[1724863474317,0.02760737,58784.0,58783.0,2.37245908]
[1724863474753,0.02760737,58784.0,58783.0,2.37745908]
[1724863475217,0.02760737,58784.0,58783.0,2.03722508]
[1724863475893,0.02760737,58784.0,58783.0,2.37745908]
[1724863476107,0.02760737,58784.0,58783.0,2.03022508]
[1724863476337,0.02760737,58784.0,58783.0,2.00722508]
[1724863476572,0.02760737,58784.0,58783.0,2.00922508]
[1724863476809,0.00093776,58784.0,58783.0,2.00922508]
[1724863477101,0.00093776,58784.0,58783.0,2.00722508]
[1724863478245,0.02760321,58784.0,58783.0,2.00722508]
[1724863478918,0.02760321,58784.0,58783.0,2.00922508]
[1724863479429,2.1e-07,58784.0,58783.0,2.38745908]
[1724863479663,0.00817,58795.0,58783.0,2.38745908]
[1724863479664,0.00817,58795.0,58794.0,1.530765]
[1724863479877,0.00817,58795.0,58794.0,2.40072775]
[1724863480571,0.00817,58795.0,58794.0,2.42372775]
[1724863480783,0.00817,58795.0,58794.0,2.42172775]
[1724863481492,0.00817,58795.0,58794.0,2.42372775]
[1724863481722,0.00817,58795.0,58794.0,2.59727939]
[1724863481980,1e-06,58800.0,58799.0,0.005]
[1724863482203,1e-06,58800.0,58799.0,1.02425234]
[1724863482415,1e-06,58800.0,58799.0,2.16470023]
[1724863482658,1e-06,58800.0,58799.0,2.60484123]
[1724863483109,1e-06,58800.0,58799.0,2.25770023]
[1724863483367,1e-06,58800.0,58799.0,2.27170023]
[1724863483622,1e-06,58800.0,58799.0,1.771134]
[1724863483835,1e-06,58800.0,58799.0,1.785134]
[1724863484316,1e-06,58800.0,58799.0,1.281193]
[1724863485221,1e-06,58800.0,58799.0,1.190493]
[1724863485455,1e-06,58800.0,58799.0,1.204493]
[1724863485707,1e-06,58800.0,58799.0,0.878352]
[1724863485941,1e-06,58800.0,58799.0,0.850352]
[1724863486180,1e-06,58800.0,58799.0,1.218493]
[1724863486624,0.571805,58800.0,58799.0,0.014]
[1724863486911,0.916941,58800.0,58799.0,0.028]
[1724863487155,1.16459975,58800.0,58799.0,0.05932174]
[1724863487380,1.19104557,58800.0,58799.0,0.05932174]
[1724863487611,1.06537969,58800.0,58799.0,0.05932174]
[1724863487847,1.06537969,58800.0,58799.0,0.04532174]
[1724863488101,1.06537969,58800.0,58799.0,0.05932174]
[1724863488539,1.06537969,58800.0,58799.0,0.04532174]
[1724863489020,1.06537969,58800.0,58799.0,0.06032174]
[1724863489249,1.06537969,58800.0,58799.0,0.04632174]
[1724863489250,0.25833431,58800.0,58799.0,0.04632174]
[1724863489493,0.25833431,58800.0,58799.0,0.04532174]
[1724863489727,0.26033431,58800.0,58799.0,0.04632174]
[1724863489959,0.25833431,58800.0,58799.0,0.04632174]
[1724863490418,0.26133431,58800.0,58799.0,0.04632174]
[1724863490631,0.26133431,58800.0,58799.0,0.21639174]
[1724863490632,0.08826631,58800.0,58799.0,0.21639174]
[1724863490862,0.08826631,58800.0,58799.0,0.04532174]
[1724863491097,0.25833431,58800.0,58799.0,0.04532174]
[1724863491321,0.09026631,58800.0,58799.0,0.04532174]
[1724863491540,0.26033431,58800.0,58799.0,0.04532174]
[1724863491773,0.97972003,58800.0,58799.0,0.04532174]
[1724863492032,1.27132978,58800.0,58799.0,0.04532174]
[1724863492912,1.23021606,58800.0,58799.0,0.04532174]
[1724863493161,0.89008006,58800.0,58799.0,0.05132174]
[1724863493401,1.04088295,58800.0,58799.0,0.05132174]
[1724863494343,0.4099542,58800.0,58799.0,0.05132174]
[1724863495058,0.2398862,58800.0,58799.0,0.05132174]
[1724863495487,0.2398862,58800.0,58799.0,0.22139174]
[1724863495707,0.1782862,58800.0,58799.0,0.22139174]
[1724863496149,0.1782862,58800.0,58799.0,0.05132174]
[1724863497082,0.12581148,58800.0,58799.0,0.05132174]
[1724863497308,0.12581148,58800.0,58799.0,0.56153274]
[1724863497792,0.12581148,58800.0,58799.0,0.22139174]
[1724863498004,0.12581148,58801.0,58799.0,0.22139174]
[1724863498484,0.12581148,58801.0,58799.0,0.05132174]
[1724863498716,0.12581148,58801.0,58799.0,0.22139174]
[1724863499189,0.12581096,58801.0,58800.0,0.170068]
[1724863499411,0.001,58801.0,58799.0,0.22138974]
[1724863499637,0.001,58801.0,58799.0,0.21539174]
[1724863499881,0.001,58801.0,58800.0,0.310368]
[1724863500155,0.10065604,58805.0,58804.0,0.005]
[1724863500386,0.00157966,58807.0,58804.0,0.005]
[1724863500387,0.00157966,58807.0,58806.0,1.535454]
[1724863500603,0.00157966,58807.0,58806.0,1.777754]
[1724863500604,0.0282373,58807.0,58806.0,1.777754]
[1724863500818,3e-07,58807.0,58806.0,2.31940664]
[1724863501058,0.00020534,58811.0,58806.0,2.31940664]
[1724863501059,0.00020534,58811.0,58810.0,1.876429]
[1724863501288,0.00020534,58811.0,58810.0,2.139729]
[1724863501567,0.00020534,58811.0,58810.0,2.14858052]
[1724863501819,0.00020534,58811.0,58810.0,2.2188776]
[1724863502071,0.0004,58819.0,58810.0,2.2188776]
[1724863502072,0.0004,58819.0,58817.0,0.004]
[1724863502351,0.0004,58819.0,58818.0,1.219108]
[1724863502352,1e-06,58819.0,58818.0,1.219108]
[1724863502544,1e-06,58819.0,58818.0,2.58335264]
[1724863502998,1e-06,58819.0,58818.0,2.64595264]
[1724863503242,0.00817,58836.0,58829.0,1.676456]
[1724863504616,0.00817,58836.0,58829.0,1.690456]
[1724863505125,0.00817,58836.0,58829.0,2.016424]
[1724863505346,0.00817,58836.0,58829.0,2.09563775]
[1724863505569,0.00817,58836.0,58829.0,2.11363775]
[1724863505789,0.00817,58836.0,58829.0,2.21363775]
[1724863506035,0.00817,58836.0,58829.0,2.21163775]
[1724863506260,1e-06,58843.0,58840.0,0.004]
[1724863506501,1e-06,58843.0,58842.0,2.72240547]
[1724863506742,1e-06,58843.0,58842.0,2.83940547]
[1724863506963,1e-06,58843.0,58842.0,3.00795711]
[1724863507203,1e-06,58843.0,58842.0,3.00995711]
[1724863507453,1e-06,58843.0,58842.0,2.64506411]
[1724863508128,1e-06,58843.0,58842.0,2.7249258]
[1724863508370,1e-06,58843.0,58842.0,2.13661947]
[1724863508626,1e-06,58843.0,58842.0,1.773918]
[1724863509097,1e-06,58843.0,58842.0,2.15061947]
[1724863509389,0.00012,58864.0,58861.0,0.002]
[1724863509611,0.48061331,58878.0,58877.0,0.929527]
[1724863509828,0.48061331,58878.0,58877.0,1.7018617]
[1724863510093,0.0004,58879.0,58878.0,1.188897]
[1724863510318,0.0004,58879.0,58878.0,1.528582]
[1724863510534,0.0004,58879.0,58878.0,1.330397]
[1724863510980,0.0088,58891.0,58878.0,0.0803]
[1724863511203,0.0088,58891.0,58888.0,0.339624]
[1724863511449,0.0088,58891.0,58873.0,0.0787]
[1724863511674,0.0621,58892.0,58889.0,0.169809]
[1724863511940,0.00166638,58896.0,58894.0,0.169796]
[1724863511941,0.0088,58895.0,58894.0,0.169796]
[1724863512699,0.0709,58895.0,58894.0,0.169796]
[1724863512920,0.0709,58895.0,58894.0,0.509389]
[1724863513139,0.0709,58895.0,58887.0,0.339632]
[1724863513382,0.0709,58895.0,58894.0,0.006]
[1724863513607,0.07989664,58895.0,58894.0,0.006]
[1724863514090,0.08189664,58895.0,58894.0,0.006]
[1724863514339,0.13262714,58895.0,58894.0,0.006]
[1724863514565,0.13262714,58895.0,58894.0,0.175796]
[1724863514566,0.0709,58895.0,58894.0,0.175796]
[1724863514786,0.0621,58895.0,58894.0,0.509389]
[1724863515022,0.0621,58895.0,58887.0,0.006]
[1724863515274,0.0621,58895.0,58891.0,0.169804]
[1724863515508,0.0621,58895.0,58875.0,0.0787]
[1724863515761,0.0621,58895.0,58884.0,0.339647]
[1724863515762,0.002,58891.0,58884.0,0.339647]
[1724863516009,0.0621,58895.0,58890.0,0.169807]
[1724863516010,0.0529,58895.0,58890.0,0.169807]
[1724863516231,0.0529,58895.0,58894.0,0.169796]
[1724863516484,0.0529,58895.0,58884.0,0.339647]
[1724863516727,0.0529,58895.0,58893.0,0.169796]
[1724863516973,0.0529,58895.0,58894.0,0.169796]
[1724863517212,0.08033999,58895.0,58894.0,0.509389]
[1724863517436,0.03501825,58895.0,58892.0,0.169801]
[1724863517767,0.03501825,58895.0,58894.0,0.169796]
[1724863518000,0.03501825,58895.0,58894.0,0.848982]
[1724863518238,0.03501825,58895.0,58894.0,0.509389]
[1724863518470,0.03501825,58895.0,58894.0,0.8999209]
[1724863518686,0.02743999,58895.0,58894.0,1.195575]
[1724863519151,3.7e-07,58896.0,58895.0,1.675141]
[1724863519373,0.00817,58902.0,58901.0,0.99588]
[1724863519613,0.00817,58902.0,58901.0,1.774984]
[1724863519849,0.00817,58902.0,58901.0,2.114536]
[1724863520061,0.00020551,58903.0,58902.0,0.860867]
[1724863520062,5.1e-07,58903.0,58902.0,0.860867]
[1724863520308,5.1e-07,58903.0,58902.0,2.1916569]
[1724863520534,0.00226863,58926.0,58918.0,1.35833647]
[1724863520750,0.00226863,58926.0,58918.0,2.03724447]
[1724863521233,0.00226863,58926.0,58918.0,1.273289]
[1724863521479,0.00226863,58926.0,58918.0,0.933835]
[1724863522147,0.00226863,58926.0,58918.0,0.947835]
[1724863522368,0.00226863,58926.0,58911.0,0.0618]
[1724863522369,0.00226863,58926.0,58911.0,0.0668]
[1724863522597,0.00226863,58926.0,58918.0,0.014]
[1724863522819,0.00226863,58926.0,58918.0,0.028]
[1724863523034,0.00226863,58926.0,58918.0,0.188727]
[1724863523477,0.00226863,58926.0,58918.0,0.528181]
[1724863523685,0.00226863,58926.0,58918.0,0.867635]
[1724863524168,0.00226863,58926.0,58918.0,0.855635]
[1724863524404,0.00226863,58926.0,58918.0,0.014]
[1724863524624,0.00226863,58926.0,58918.0,0.028]
[1724863524837,0.00226863,58926.0,58918.0,0.014]
[1724863525075,0.33942,58924.0,58918.0,0.014]
[1724863525326,0.00226863,58926.0,58905.0,0.005]
[1724863525327,0.169733,58916.0,58905.0,0.005]
[1724863525556,0.0394,58919.0,58918.0,0.012]
[1724863525784,0.0394,58919.0,58918.0,0.026]
[1724863526021,0.06133264,58919.0,58905.0,0.005]
[1724863526256,0.16973,58918.0,58906.0,0.169761]
[1724863526699,0.06133264,58919.0,58907.0,0.169758]
[1724863526935,0.06133264,58919.0,58910.0,0.005]
[1724863526936,0.0394,58919.0,58910.0,0.005]
[1724863527171,0.0394,58919.0,58906.0,0.005]
[1724863527421,0.02661386,58917.0,58906.0,0.005]
[1724863527855,0.02661386,58917.0,58901.0,0.339547]
[1724863527856,0.36607486,58917.0,58905.0,0.005]
[1724863528068,0.169736,58915.0,58905.0,0.005]
[1724863528307,0.02661386,58917.0,58914.0,0.169736]
[1724863528552,0.02661386,58917.0,58911.0,0.005]
[1724863528784,0.02357369,58916.0,58911.0,0.005]
[1724863528987,0.02861386,58917.0,58911.0,0.005]
[1724863529194,0.02861386,58917.0,58908.0,0.169754]
[1724863529407,0.02861386,58917.0,58911.0,0.005]
[1724863529613,0.02861386,58917.0,58909.0,0.005]
[1724863529614,0.06787979,58917.0,58909.0,0.005]
[1724863530041,0.02661386,58917.0,58912.0,0.005]
[1724863530256,0.02661386,58917.0,58916.0,0.344466]
[1724863530521,0.02661386,58917.0,58916.0,0.514199]
[1724863530735,0.02861386,58917.0,58916.0,0.514199]
[1724863530944,0.02511386,58917.0,58916.0,0.514199]
[1724863531407,0.001215,58919.0,58918.0,0.598481]
[1724863531640,0.001215,58919.0,58918.0,0.937935]
[1724863531870,0.001215,58919.0,58918.0,1.35668131]
[1724863532093,0.001215,58919.0,58918.0,1.69613531]
[1724863532303,0.001215,58919.0,58918.0,1.69413531]
[1724863532520,0.001215,58919.0,58918.0,1.86468695]
[1724863533646,0.00226863,58926.0,58925.0,1.189949]
[1724863533859,0.00226863,58926.0,58925.0,1.338249]
[1724863534075,0.00226863,58926.0,58925.0,1.68912783]
[1724863534309,0.00226863,58926.0,58925.0,2.15305266]
[1724863534761,0.02886923,58926.0,58925.0,2.17605266]
[1724863535028,0.0004,58939.0,58938.0,1.272586]
[1724863535290,0.0004,58939.0,58938.0,1.277586]
[1724863535518,0.0004,58939.0,58938.0,1.28902655]
[1724863537557,0.0004,58939.0,58938.0,0.52544855]
[1724863537773,0.0004,58939.0,58938.0,0.86478755]
[1724863537982,0.0004,58939.0,58938.0,0.9994022]
[1724863538202,0.0004,58939.0,58938.0,0.6740632]
[1724863538419,0.0004,58939.0,58938.0,0.87878755]
[1724863538634,0.0004,58939.0,58938.0,0.86678755]
[1724863538863,0.0004,58939.0,58938.0,1.37582655]
[1724863539301,0.0004,58939.0,58938.0,1.34782655]
[1724863539551,0.0004,58939.0,58938.0,1.86971719]
[1724863539771,0.0004,58939.0,58938.0,1.54007819]
[1724863539986,0.0004,58939.0,58938.0,1.04733919]
[1724863540209,0.0004,58939.0,58938.0,1.38667819]
[1724863540427,0.0004,58939.0,58938.0,0.88078755]
[1724863540690,0.0004,58939.0,58938.0,0.87878755]
[1724863540939,0.0004,58939.0,58938.0,0.01644055]
[1724863541155,0.889132,58939.0,58938.0,0.01144055]
[1724863541385,1.0119769,58939.0,58938.0,0.03944055]
[1724863541596,1.3513099,58939.0,58938.0,0.014]
[1724863541807,1.3513099,58939.0,58919.0,0.0643]
[1724863541808,0.339341,58938.0,58918.0,0.005]
[1724863542050,0.169718,58921.0,58920.0,0.50540786]
[1724863542291,0.339376,58932.0,58919.0,0.0110979]
[1724863542506,0.01,58937.0,58920.0,0.01109781]
[1724863542740,0.169704,58926.0,58920.0,0.01109781]
[1724863542964,0.339421,58924.0,58920.0,0.01109781]
[1724863543180,0.0509109,58926.0,58918.0,0.005]
[1724863543181,0.0509109,58926.0,58918.0,0.001]
[1724863543412,0.04035015,58938.0,58918.0,0.001]
[1724863543413,0.169722,58920.0,58918.0,0.001]
[1724863543635,0.169724,58919.0,58918.0,0.001]
[1724863543844,0.509173,58919.0,58918.0,0.001]
[1724863544536,0.169727,58918.0,58917.0,0.0008965]
[1724863544768,0.8696477,58918.0,58917.0,0.0008965]
[1724863545004,1.2091017,58918.0,58917.0,0.0008965]
[1724863545225,1.5989557,58918.0,58917.0,0.0008965]
[1724863545434,1.7219557,58918.0,58917.0,0.0008965]
[1724863546346,1.36834141,58918.0,58917.0,0.0008965]
[1724863546595,1.00787471,58918.0,58917.0,0.0008965]
[1724863546811,1.34732871,58918.0,58917.0,0.0008965]
[1724863547023,1.70978271,58918.0,58917.0,0.0008965]
[1724863547315,1.73640062,58918.0,58917.0,0.0008965]
[1724863547521,1.73640062,58918.0,58890.0,0.174806]
[1724863547522,0.169776,58901.0,58890.0,0.174806]
[1724863547750,0.169776,58901.0,58891.0,0.169804]
[1724863547751,0.509328,58901.0,58891.0,0.169804]
[1724863547984,0.509328,58901.0,58889.0,0.169808]
[1724863548195,0.85388,58901.0,58887.0,0.51040786]
[1724863548407,0.85388,58901.0,58884.0,0.4058415]
[1724863548408,0.89338,58901.0,58884.0,0.4058415]
[1724863548633,1.32777,58901.0,58884.0,0.0008965]
[1724863548846,1.32777,58901.0,58885.0,0.50540786]
[1724863548847,1.42777,58901.0,58885.0,0.50540786]
[1724863549319,1.42977,58901.0,58900.0,0.1191]
[1724863549558,1.45177,58901.0,58900.0,0.1081]
[1724863549773,1.791322,58901.0,58900.0,0.1081]
[1724863550202,1.80024001,58901.0,58900.0,0.1081]
[1724863550441,2.64102251,58901.0,58900.0,0.02272926]
[1724863550649,2.68056832,58901.0,58900.0,0.02272926]
[1724863550855,2.25974001,58901.0,58900.0,0.01472926]
[1724863551068,2.26074001,58901.0,58900.0,0.02172926]
[1724863551274,2.28736754,58901.0,58900.0,0.02272926]
[1724863551701,2.28736754,58901.0,58900.0,0.02172926]
[1724863551918,2.28736754,58901.0,58884.0,0.0008965]
[1724863551919,0.005,58888.0,58884.0,0.0008965]
[1724863552134,1.08793554,58901.0,58884.0,0.0008965]
[1724863552135,1.56145847,58885.0,58884.0,0.0008965]
[1724863552347,1.90110347,58885.0,58884.0,0.0008965]
[1724863552557,2.02410347,58885.0,58884.0,0.0008965]
[1724863552769,2.06445362,58885.0,58884.0,0.0008965]
[1724863553006,2.40409862,58885.0,58884.0,0.0008965]
[1724863553227,2.40409862,58885.0,58861.0,0.50540786]
[1724863553228,0.849442,58862.0,58861.0,0.50540786]
[1724863553438,0.005,58872.0,58861.0,0.50540786]
[1724863553670,0.169888,58862.0,58861.0,0.00875398]
[1724863553880,0.519665,58862.0,58861.0,0.00875398]
[1724863554144,0.36270147,58866.0,58858.0,0.008965]
[1724863554145,0.519692,58859.0,58858.0,0.008965]
[1724863554351,1.22218847,58859.0,58858.0,0.008965]
[1724863554820,1.22218847,58859.0,58841.0,0.008987]
[1724863554821,1.21243347,58842.0,58841.0,0.008987]
[1724863555282,1.56232647,58842.0,58841.0,0.01949729]
[1724863555502,1.56232647,58842.0,58841.0,0.008987]
[1724863555503,1.84611563,58842.0,58841.0,0.008987]
[1724863555940,1.78356982,58842.0,58841.0,0.008987]
[1724863556154,1.08197535,58842.0,58841.0,0.008987]
[1724863556846,0.74208235,58842.0,58841.0,0.008987]
[1724863557053,0.75873358,58842.0,58841.0,0.008987]
[1724863557287,1.10762658,58842.0,58841.0,0.008987]
[1724863557515,1.00762658,58842.0,58841.0,0.008987]
[1724863557736,1.01162658,58842.0,58841.0,0.008987]
[1724863558199,1.00762658,58842.0,58841.0,0.008987]
[1724863558424,1.79817857,58842.0,58841.0,0.008987]
[1724863558635,2.14207157,58842.0,58841.0,0.008987]
[1724863558848,2.24207157,58842.0,58841.0,0.008987]
[1724863559095,2.73807157,58842.0,58841.0,0.008987]
[1724863559300,0.859962,58826.0,58825.0,0.008976]
[1724863559754,0.514977,58826.0,58825.0,0.008976]
[1724863559991,0.859962,58826.0,58825.0,0.008976]
[1724863560228,0.88661853,58826.0,58825.0,0.008976]
[1724863560458,0.06932718,58826.0,58825.0,0.008976]
[1724863560682,0.19664853,58826.0,58825.0,0.008976]
[1724863560897,0.19664853,58826.0,58825.0,0.086076]
[1724863561136,0.02665653,58826.0,58825.0,0.086076]
[1724863561366,0.02665653,58826.0,58825.0,0.09572008]
[1724863561585,0.02765653,58826.0,58825.0,0.61470608]
[1724863561823,0.002,58826.0,58825.0,0.95669708]
[1724863562042,0.002,58826.0,58825.0,0.61670608]
[1724863562257,0.002,58826.0,58825.0,1.01669708]
[1724863562523,0.005,58838.0,58829.0,0.169983]
[1724863562738,0.005,58838.0,58825.0,0.32571408]
[1724863562962,0.005,58838.0,58830.0,0.00964365]
[1724863563194,0.344912,58839.0,58826.0,0.339985]
[1724863563195,0.169971,58834.0,58829.0,0.169983]
[1724863563441,0.169971,58834.0,58831.0,0.00964356]
[1724863563647,0.05448852,58833.0,58830.0,0.00964365]
[1724863563856,0.22425624,58833.0,58832.0,0.00964347]
[1724863564064,0.05428424,58833.0,58825.0,0.157076]
[1724863564313,0.02242562,58832.0,58825.0,0.157076]
[1724863564543,0.344943,58834.0,58825.0,0.008976]
[1724863564770,0.169973,58833.0,58831.0,0.009]
[1724863565008,0.169973,58833.0,58825.0,0.008976]
[1724863565009,0.509934,58831.0,58830.0,0.001]
[1724863565245,0.001,58833.0,58830.0,0.001]
[1724863565475,0.001,58833.0,58825.0,0.008976]
[1724863565476,0.001,58833.0,58826.0,0.169992]
[1724863565702,0.001,58833.0,58825.0,0.017976]
[1724863565703,0.005,58835.0,58825.0,0.008976]
[1724863565932,0.1,58846.0,58825.0,0.008976]
[1724863565933,0.3399,58841.0,58829.0,0.0821]
[1724863566161,0.02665318,58832.0,58829.0,0.0821]
[1724863566404,0.169965,58836.0,58829.0,0.0821]
[1724863566621,0.169965,58836.0,58831.0,0.169976]
[1724863566852,0.02665231,58832.0,58829.0,0.0771]
[1724863567066,0.02665231,58832.0,58831.0,0.01]
[1724863567292,0.02665231,58832.0,58831.0,0.179978]
[1724863567504,0.02665231,58832.0,58829.0,0.0821]
[1724863567728,0.04631424,58832.0,58829.0,0.0841]
[1724863567939,0.509943,58830.0,58829.0,0.0850009]
[1724863568160,0.53658531,58832.0,58829.0,0.0780009]
[1724863568402,0.02765231,58832.0,58831.0,0.349956]
[1724863568629,0.02765231,58832.0,58831.0,0.509934]
[1724863568901,0.02865231,58832.0,58831.0,0.579934]
[1724863569128,0.02965231,58832.0,58831.0,0.99899]
[1724863569977,0.02965231,58832.0,58831.0,0.652034]
[1724863570232,0.19862731,58832.0,58831.0,0.1421]
[1724863570440,0.19862731,58832.0,58829.0,0.0099009]
[1724863570441,0.169981,58830.0,58829.0,0.0099009]
[1724863570696,0.849905,58830.0,58829.0,0.0099009]
[1724863570890,1.189867,58830.0,58829.0,0.0099009]
[1724863572062,1.23253765,58830.0,58829.0,0.0099009]
[1724863572265,1.189867,58830.0,58829.0,0.0099009]
[1724863572487,1.3147052,58830.0,58829.0,0.0009009]
[1724863573548,1.3157052,58830.0,58829.0,0.0089009]
[1724863574633,1.6656672,58830.0,58829.0,0.0089009]
[1724863574813,1.80833785,58830.0,58829.0,0.0089009]
[1724863575038,1.80833785,58830.0,58829.0,0.0209009]
[1724863575480,1.81901818,58830.0,58829.0,0.0209009]
[1724863575689,1.84201818,58830.0,58829.0,0.0209009]
[1724863576123,1.85064226,58830.0,58829.0,0.0209009]
[1724863576804,1.84964226,58830.0,58829.0,0.0129009]
[1724863577247,1.86364226,58830.0,58829.0,0.0139009]
[1724863577684,1.84964226,58830.0,58829.0,0.0129009]
[1724863577960,1.86364226,58830.0,58829.0,0.0139009]
[1724863578201,1.86364226,58830.0,58829.0,0.0019009]
[1724863578439,1.85764226,58830.0,58829.0,0.0019009]
[1724863578896,0.008,58830.0,58829.0,0.6558529]
[1724863579132,0.06819,58845.0,58833.0,0.002]
[1724863579338,0.169933,58847.0,58840.0,0.169952]
[1724863579566,0.005,58848.0,58838.0,0.002]
[1724863579777,0.005,58846.0,58840.0,0.17893332]
[1724863579987,0.005,58846.0,58835.0,0.33993]
[1724863580218,0.005,58846.0,58834.0,0.0819]
[1724863580219,0.170768,58841.0,58840.0,0.0074498]
[1724863580461,0.169959,58838.0,58834.0,0.0819]
[1724863580706,0.0518842,58841.0,58834.0,0.0819]
[1724863580707,0.2218332,58841.0,58834.0,0.0819]
[1724863580944,0.169955,58839.0,58838.0,0.006]
[1724863581186,0.001819,58841.0,58838.0,0.006]
[1724863581412,0.000819,58841.0,58840.0,0.509856]
[1724863581628,0.000819,58841.0,58840.0,0.004]
[1724863581866,0.000819,58841.0,58840.0,0.0114498]
[1724863582082,0.0178952,58841.0,58840.0,0.004]
[1724863582310,0.0178952,58841.0,58840.0,0.513856]
[1724863582520,0.000819,58841.0,58840.0,0.8612098]
[1724863582943,0.000819,58841.0,58840.0,0.8572098]
[1724863583599,0.000819,58841.0,58840.0,1.0035098]
[1724863583817,0.000819,58841.0,58840.0,0.1537498]
[1724863584022,0.170768,58841.0,58840.0,0.0893498]
[1724863584244,0.2218337,58841.0,58840.0,0.0893498]
[1724863584699,0.2218337,58841.0,58840.0,0.0919]
[1724863584700,0.000819,58841.0,58840.0,0.0919]
[1724863584934,0.170768,58841.0,58840.0,0.1059]
[1724863585142,0.850566,58841.0,58840.0,0.01]
[1724863585365,0.9696116,58841.0,58840.0,0.01]
[1724863585631,0.9696116,58841.0,58840.0,0.023]
[1724863586082,0.9696116,58841.0,58840.0,0.013]
[1724863586311,0.2898136,58841.0,58840.0,0.009]
[1724863586528,0.53731614,58841.0,58840.0,0.009]
[1724863586967,0.36736714,58841.0,58835.0,0.169966]
[1724863587201,0.02726359,58841.0,58840.0,0.01]
[1724863587421,0.19721259,58841.0,58840.0,0.01]
[1724863587643,0.19721259,58841.0,58836.0,0.169962]
[1724863587859,0.19721259,58841.0,58840.0,0.014]
[1724863588077,0.19721259,58841.0,58840.0,0.009]
[1724863588308,0.02726359,58841.0,58840.0,0.009]
[1724863588564,0.02726359,58841.0,58840.0,0.023]
[1724863588793,0.02726359,58841.0,58840.0,0.009]
[1724863588992,0.02726359,58841.0,58840.0,0.178952]
[1724863589227,0.02726359,58841.0,58840.0,0.92896]
[1724863589476,0.02726359,58841.0,58840.0,1.268864]
[1724863589685,0.02826359,58841.0,58840.0,1.282864]
[1724863589936,0.02826359,58841.0,58840.0,1.287864]
[1724863590142,0.02726359,58841.0,58840.0,1.350164]
[1724863590358,0.169892,58861.0,58851.0,0.0792]
[1724863590566,0.005,58862.0,58855.0,0.339817]
[1724863590768,0.27089154,58862.0,58855.0,0.339817]
[1724863591002,0.169897,58860.0,58854.0,0.169909]
[1724863591230,0.01390302,58866.0,58850.0,0.004]
[1724863591231,0.169877,58866.0,58850.0,0.004]
[1724863591458,0.339768,58864.0,58855.0,0.339813]
[1724863591664,0.339768,58864.0,58856.0,0.339812]
[1724863591888,0.169895,58860.0,58850.0,0.004]
[1724863592166,0.169895,58860.0,58856.0,0.169906]
[1724863592427,0.169901,58858.0,58855.0,0.001]
[1724863592638,0.0174895,58859.0,58852.0,0.169916]
[1724863592862,0.16991,58855.0,58850.0,0.169922]
[1724863593060,0.169915,58853.0,58847.0,0.339864]
[1724863593264,0.0509714,58854.0,58849.0,0.339852]
[1724863593529,0.01,58863.0,58850.0,0.0827]
[1724863593775,0.339772,58863.0,58855.0,0.011]
[1724863593992,0.01,58868.0,58855.0,0.011]
[1724863593993,0.33975,58867.0,58855.0,0.011]
[1724863594252,0.169882,58865.0,58861.0,0.16989]
[1724863594454,0.169882,58865.0,58853.0,0.004]
[1724863594455,0.005,58879.0,58872.0,0.59228]
[1724863594689,0.339671,58881.0,58872.0,0.59228]
[1724863594690,0.005,58881.0,58873.0,0.169854]
[1724863594906,0.005,58881.0,58872.0,0.0827]
[1724863594907,0.344674,58880.0,58875.0,0.169851]
[1724863595132,0.16984,58879.0,58875.0,0.16985]
[1724863595341,0.16984,58879.0,58872.0,0.0827]
[1724863595342,0.339682,58879.0,58872.0,0.0827]
[1724863595563,0.05576373,58882.0,58872.0,0.0827]
[1724863595564,0.339695,58877.0,58872.0,0.0827]
[1724863595773,0.169852,58875.0,58872.0,0.0827]
[1724863596006,0.169847,58877.0,58873.0,0.169856]
[1724863596242,0.339647,58885.0,58879.0,0.169838]
[1724863596243,0.339646,58885.0,58879.0,0.169838]
[1724863596451,0.169828,58883.0,58879.0,0.169838]
[1724863596667,0.00819,58889.0,58878.0,0.0826]
[1724863596891,0.00819,58889.0,58888.0,0.50944]
[1724863597105,0.00819,58889.0,58888.0,0.59204]
[1724863597365,0.178001,58889.0,58888.0,0.0826]
[1724863597577,0.22292863,58889.0,58888.0,0.0826]
[1724863597799,0.20462853,58889.0,58888.0,0.0826]
[1724863598232,0.03481753,58889.0,58888.0,0.0826]
[1724863598448,0.20462853,58889.0,58888.0,0.0826]
[1724863598696,0.54425053,58889.0,58888.0,0.0876]
[1724863598893,0.59867428,58889.0,58888.0,0.0876]
[1724863599336,0.03481753,58889.0,58888.0,0.0876]
[1724863599558,0.03481753,58889.0,58888.0,0.59704]
[1724863599995,0.03481753,58889.0,58888.0,0.59804]
[1724863600238,0.03481753,58889.0,58888.0,1.002267]
[1724863600450,0.03481753,58889.0,58888.0,0.66164]
[1724863600675,0.03481753,58889.0,58888.0,1.001267]
[1724863601382,0.03481753,58889.0,58888.0,0.996267]
[1724863601599,0.03481753,58889.0,58888.0,0.65964]
[1724863601802,0.03481753,58889.0,58888.0,0.65764]
[1724863602226,0.03481753,58889.0,58888.0,0.65864]
[1724863602431,0.03481753,58889.0,58888.0,0.66264]
[1724863603136,0.03481753,58889.0,58888.0,0.1492]
[1724863603346,0.03481753,58889.0,58888.0,0.0886]
[1724863603565,0.08924098,58889.0,58888.0,0.0886]
[1724863603776,0.25905198,58889.0,58888.0,0.0886]
[1724863604000,0.59867398,58889.0,58888.0,0.0886]
[1724863604859,0.59367398,58889.0,58888.0,0.0886]
[1724863605357,0.59367398,58889.0,58888.0,0.006]
[1724863605358,0.93329598,58889.0,58888.0,0.006]
[1724863605611,1.44993566,58889.0,58888.0,0.006]
[1724863605837,2.3257248,58889.0,58888.0,0.006]
[1724863606092,2.28370712,58889.0,58888.0,0.006]
[1724863606343,2.28570712,58889.0,58888.0,0.006]
[1724863606551,0.849285,58873.0,58872.0,0.50540786]
[1724863607014,0.339721,58872.0,58866.0,0.0813]
[1724863607253,0.339697,58876.0,58866.0,0.0853]
[1724863607466,0.02663471,58873.0,58867.0,0.169874]
[1724863607923,0.169864,58871.0,58867.0,0.169874]